bitfinex-derivatives/quotes_ETHF0:USTF0_20250518
["timestamp","ask_amount","ask_price","bid_price","bid_amount"]
[1747537431551,1.37028003,2484.4,2484.3,20.68725857]
[1747537432953,8.81603966,2484.4,2484.3,20.68725857]
[1747537434555,7.53793966,2484.4,2484.3,20.68725857]
[1747537434854,0.09218003,2484.4,2484.3,25.21721643]
[1747537435255,0.09218003,2484.4,2484.3,28.27521643]
[1747537436160,0.09218003,2484.4,2484.3,25.21721643]
[1747537437156,0.09218003,2484.4,2484.3,28.27521643]
[1747537438056,0.09218003,2484.4,2484.3,26.66707226]
[1747537438257,0.09218003,2484.4,2484.3,25.30747226]
[1747537438459,0.09218003,2484.4,2484.3,26.64527226]
[1747537439164,0.09218003,2484.4,2484.3,23.58727226]
[1747537442053,0.09218003,2484.4,2484.3,26.64527226]
[1747537442456,1.3144,2484.9,2484.4,0.80476]
[1747537442658,1.3123,2485.0,2484.9,0.8046]
[1747537442860,1.9518,2485.3,2485.2,0.8045]
[1747537443054,9.39755963,2485.3,2485.2,4.0123]
[1747537444161,12.45555963,2485.3,2485.2,4.0123]
[1747537444762,12.54773966,2485.3,2485.2,5.3480144]
[1747537446167,9.48973966,2485.3,2485.2,5.3480144]
[1747537447466,9.48973966,2485.3,2485.2,6.54798468]
[1747537448967,9.48973966,2485.3,2485.2,22.12098468]
[1747537449168,9.48973966,2485.3,2485.2,23.37678468]
[1747537450569,9.48973966,2485.3,2485.2,22.1768144]
[1747537451067,9.48973966,2485.3,2485.2,6.6038144]
[1747537451257,9.48973966,2485.3,2485.2,13.1380144]
[1747537451461,10.29420966,2485.3,2485.2,4.5435144]
[1747537452260,13.35220966,2485.3,2485.2,4.5435144]
[1747537452670,12.54773966,2485.3,2485.2,4.5435144]
[1747537452872,13.35220966,2485.3,2485.2,4.5435144]
[1747537453074,12.54773966,2485.3,2485.2,4.5435144]
[1747537453571,12.54773966,2485.3,2485.2,5.3480144]
[1747537455867,12.54773966,2485.3,2485.2,6.54798468]
[1747537456369,12.55655255,2485.3,2485.2,6.54798468]
[1747537457081,9.49855255,2485.3,2485.2,6.54798468]
[1747537458377,7.54675255,2485.3,2485.2,6.54798468]
[1747537459070,8.89485255,2485.3,2485.2,6.54798468]
[1747537461180,11.95285255,2485.3,2485.2,6.54798468]
[1747537463682,4.50709292,2485.3,2485.2,6.54798468]
[1747537464081,4.50709292,2485.3,2485.2,7.92958468]
[1747537464282,1.44909292,2485.3,2485.2,12.37462829]
[1747537464876,1.44909292,2485.3,2485.2,12.77461839]
[1747537467483,1.44909292,2485.3,2485.2,18.93065801]
[1747537470887,0.10099292,2485.3,2485.2,18.93065801]
[1747537471288,0.10099292,2485.3,2485.2,21.33059858]
[1747537474787,0.10099292,2485.3,2485.2,22.14211032]
[1747537475888,7.54675255,2485.3,2485.2,29.88411032]
[1747537477281,7.54675255,2485.3,2485.2,26.67265801]
[1747537477483,0.10099292,2485.3,2485.2,26.67265801]
[1747537477884,1.3159,2485.7,2485.6,0.80437]
[1747537478187,0.6853,2485.7,2485.6,19.52317]
[1747537478380,8.13105963,2485.7,2485.6,19.52317]
[1747537478781,8.13105963,2485.7,2485.6,22.1079844]
[1747537479092,11.18905963,2485.7,2485.6,22.1079844]
[1747537480793,11.18905963,2485.7,2485.6,20.8588844]
[1747537485800,11.18905963,2485.7,2485.6,20.8448844]
[1747537486599,11.18905963,2485.7,2485.6,22.44615385]
[1747537486794,3.7433,2485.7,2485.6,22.44615385]
[1747537486996,11.18905963,2485.7,2485.6,6.14478385]
[1747537487200,11.18905963,2485.7,2485.6,22.44315385]
[1747537487396,3.7433,2485.7,2485.6,26.68807713]
[1747537487602,3.7433,2485.7,2485.6,28.01627713]
[1747537488206,0.6853,2485.7,2485.6,28.01627713]
[1747537489407,0.77748003,2485.7,2485.6,28.01627713]
[1747537489704,0.77748003,2485.7,2485.6,28.81726721]
[1747537491207,0.77748003,2485.7,2485.6,21.07826721]
[1747537491402,8.22323966,2485.7,2485.6,11.99506721]
[1747537491607,8.22323966,2485.7,2485.6,27.48306721]
[1747537492107,11.28123966,2485.7,2485.6,27.48306721]
[1747537492806,11.28123966,2485.7,2485.6,23.23814393]
[1747537493201,0.77748003,2485.7,2485.6,27.65340488]
[1747537496005,3.2078,2486.8,2486.6,0.80404]
[1747537496204,1.9738,2486.3,2486.2,4.01198]
[1747537496399,9.41955963,2486.3,2486.2,4.01198]
[1747537497410,9.41955963,2486.3,2486.2,4.63618]
[1747537498510,9.41955963,2486.3,2486.2,5.96868455]
[1747537499205,9.41955963,2486.3,2486.2,20.81648455]
[1747537500205,0.664,2486.7,2486.6,0.80405]
[1747537500412,1.00739478,2486.9,2486.6,0.80405]
[1747537500413,1.00739478,2486.9,2486.8,0.80399]
[1747537501009,8.45315441,2486.9,2486.8,16.28999]
[1747537501813,10.37605441,2486.9,2486.8,16.81650455]
[1747537502108,10.37605441,2486.9,2486.8,17.62049455]
[1747537503711,10.37605441,2486.9,2486.8,1.33250455]
[1747537504114,13.43405441,2486.9,2486.8,1.33250455]
[1747537504810,19.33018444,2486.9,2486.8,1.33250455]
[1747537505003,0.80402,2486.7,2486.6,1.19695197]
[1747537505209,6.91727508,2486.7,2486.6,0.15825197]
[1747537505515,11.91727508,2486.7,2486.6,0.15825197]
[1747537505712,11.11325508,2486.7,2486.6,0.96230197]
[1747537505913,6.11325508,2486.7,2486.6,0.96230197]
[1747537506214,9.17125508,2486.7,2486.6,0.96230197]
[1747537506618,9.17125508,2486.7,2486.6,0.80405]
[1747537506915,10.55055508,2486.7,2486.5,0.80407]
[1747537507107,2.0137,2486.6,2486.5,0.80407]
[1747537507310,8.12695508,2486.6,2486.4,0.80411]
[1747537507618,1.3364,2486.5,2486.4,0.80411]
[1747537507811,7.44965508,2486.5,2486.4,0.80411]
[1747537508007,7.44965508,2486.5,2486.3,0.80413]
[1747537508209,7.44965508,2486.4,2486.2,18.6998]
[1747537508410,8.07915508,2486.3,2486.2,19.50398]
[1747537509105,11.13715508,2486.3,2486.2,19.50398]
[1747537510417,10.50765508,2486.3,2486.2,19.50398]
[1747537510726,3.058,2486.3,2486.2,25.00713389]
[1747537511216,2.5885,2486.8,2486.6,0.80403]
[1747537511516,3.39249,2486.8,2486.6,3.2078]
[1747537511710,7.36895508,2486.7,2486.6,3.2078]
[1747537512119,10.42695508,2486.7,2486.6,3.2078]
[1747537512417,11.23097508,2486.7,2486.6,3.2078]
[1747537513016,10.42695508,2486.7,2486.6,3.2078]
[1747537514413,11.23097508,2486.7,2486.6,3.2078]
[1747537514717,3.058,2486.7,2486.6,4.01185]
[1747537514917,3.058,2486.7,2486.6,6.60145]
[1747537515119,0.09218003,2486.9,2486.8,0.80399]
[1747537515511,6.20543511,2486.9,2486.8,0.80399]
[1747537516816,0.09218003,2486.9,2486.8,0.80399]
[1747537517018,6.20543511,2486.9,2486.8,0.80399]
[1747537518622,6.20543511,2486.9,2486.8,2.12248616]
[1747537519015,0.09218003,2486.9,2486.8,14.12419397]
[1747537521121,1.385,2487.3,2487.2,0.80386]
[1747537521523,7.49825508,2487.3,2487.2,0.80386]
[1747537522126,10.55625508,2487.3,2487.2,2.12235616]
[1747537523617,10.55625508,2487.3,2487.2,3.46285616]
[1747537524123,7.49825508,2487.3,2487.2,3.46285616]
[1747537525523,7.49825508,2487.3,2487.2,11.23385616]
[1747537526423,7.49825508,2487.3,2487.2,3.46285616]
[1747537526624,16.50987508,2487.3,2487.2,1.31849616]
[1747537527325,19.56787508,2487.3,2487.2,1.31849616]
[1747537527520,0.80389,2487.1,2487.0,1.60025027]
[1747537527721,0.80393,2487.0,2486.8,0.80397]
[1747537527920,6.20543511,2486.9,2486.8,0.80397]
[1747537528315,10.50983511,2486.9,2486.8,0.80397]
[1747537528524,11.31379511,2486.9,2486.7,0.804]
[1747537528715,4.39658003,2486.9,2486.8,0.80399]
[1747537529119,10.50983511,2486.9,2486.8,0.80399]
[1747537529622,10.50983511,2486.9,2486.7,0.80399]
[1747537529830,3.15018003,2486.9,2486.7,0.80399]
[1747537530032,6.91725508,2486.8,2486.6,8.53704]
[1747537530216,6.11325508,2486.7,2486.6,0.80404]
[1747537530716,6.11325508,2486.7,2486.6,2.15614]
[1747537531225,9.17125508,2486.7,2486.6,2.15614]
[1747537531627,9.17125508,2486.7,2486.6,3.47479922]
[1747537534424,9.17125508,2486.7,2486.6,1.31865922]
[1747537536034,9.26343511,2486.7,2486.6,1.31865922]
[1747537536731,9.26343511,2486.7,2486.6,2.12270922]
[1747537537634,9.26343511,2486.7,2486.6,2.79470922]
[1747537538226,6.20543511,2486.7,2486.6,2.79470922]
[1747537540231,9.26343511,2486.7,2486.6,2.79470922]
[1747537541138,6.20543511,2486.7,2486.6,4.05370922]
[1747537542034,0.09218003,2486.7,2486.6,4.05370922]
[1747537543039,6.20543511,2486.7,2486.6,2.12270922]
[1747537543238,9.26343511,2486.7,2486.6,2.12270922]
[1747537544042,3.15018003,2486.7,2486.6,2.12270922]
[1747537544341,3.15018003,2486.7,2486.6,3.42610922]
[1747537545143,0.09218003,2486.7,2486.6,3.42610922]
[1747537545944,3.2078,2487.2,2487.1,0.80389]
[1747537546136,3.2078,2487.2,2487.1,8.58189]
[1747537546337,9.32105508,2487.2,2487.1,8.58189]
[1747537546641,9.32105508,2487.2,2487.1,10.52524922]
[1747537547343,13.70525508,2487.2,2487.1,10.52524922]
[1747537547643,10.49745508,2487.2,2487.1,10.52524922]
[1747537548346,10.49745508,2487.2,2487.1,9.09665922]
[1747537548638,10.49745508,2487.2,2487.1,9.90054922]
[1747537549245,10.58963511,2487.2,2487.1,2.12254922]
[1747537549443,10.58963511,2487.2,2487.1,9.90054922]
[1747537550146,10.58963511,2487.2,2487.1,1.31865922]
[1747537550340,10.58963511,2487.2,2487.1,2.12254922]
[1747537552743,10.58963511,2487.2,2487.1,1.31865922]
[1747537553047,11.39349511,2487.2,2487.1,1.31865922]
[1747537553239,10.58963511,2487.2,2487.1,2.12254922]
[1747537554846,0.80395,2486.9,2486.8,1.60025027]
[1747537555049,6.91720508,2486.9,2486.8,1.60025027]
[1747537555341,11.91720508,2486.9,2486.8,1.60025027]
[1747537555540,13.17440508,2486.9,2486.8,1.60025027]
[1747537556244,16.91930508,2486.9,2486.8,1.60025027]
[1747537556648,16.91930508,2486.9,2486.5,3.2078]
[1747537556649,0.80405,2486.6,2486.5,3.2078]
[1747537556947,9.32105508,2486.6,2486.3,2.14770982]
[1747537557146,6.11325508,2486.4,2486.3,1.34359982]
[1747537557448,6.11325508,2486.4,2486.3,2.14774982]
[1747537557648,8.15815508,2486.4,2486.3,2.14774982]
[1747537557949,8.15815508,2486.4,2486.3,0.80415]
[1747537558143,12.02027508,2486.4,2486.1,5.61223027]
[1747537558343,6.11325508,2486.2,2486.1,5.61223027]
[1747537558645,6.11325508,2486.2,2486.1,1.60025027]
[1747537559048,8.27493508,2486.2,2486.1,1.60025027]
[1747537559244,11.33293508,2486.2,2486.1,1.60025027]
[1747537559950,10.52875508,2486.2,2486.1,0.80421]
[1747537560452,10.52875508,2486.2,2486.0,2.08553]
[1747537560644,6.11325508,2486.1,2486.0,2.08553]
[1747537560844,7.47075508,2486.1,2486.0,2.08553]
[1747537561044,8.13245508,2486.1,2486.0,2.08553]
[1747537561250,11.19045508,2486.1,2486.0,1.2813]
[1747537562152,11.99466508,2486.1,2485.9,7.779]
[1747537562355,2.17274,2486.0,2485.9,7.779]
[1747537562555,0.80428,2485.9,2485.8,3.2078]
[1747537562749,8.94073508,2485.9,2485.8,3.2078]
[1747537563253,11.99873508,2485.9,2485.8,3.2078]
[1747537563857,0.80431,2485.8,2485.7,1.60025027]
[1747537564051,8.28606508,2485.8,2485.7,1.60025027]
[1747537564251,13.28606508,2485.8,2485.7,1.60025027]
[1747537564453,21.12306508,2485.8,2485.7,1.60025027]
[1747537564955,0.80444,2485.4,2485.3,1.34359982]
[1747537565156,6.91769508,2485.4,2485.3,1.34359982]
[1747537566158,9.97569508,2485.4,2485.3,1.34359982]
[1747537566558,9.97569508,2485.4,2485.1,5.36491]
[1747537566857,6.91775508,2485.2,2485.1,3.2078]
[1747537567259,8.23485508,2485.2,2485.1,3.2078]
[1747537567760,7.43035508,2485.2,2485.1,4.01233]
[1747537567956,1.3171,2485.2,2485.1,4.01233]
[1747537568159,1.9424,2485.6,2485.1,3.2078]
[1747537568356,7.37985508,2485.4,2485.2,2.75648]
[1747537568657,8.18431508,2485.4,2485.2,0.6387]
[1747537569049,11.24231508,2485.4,2485.2,0.6387]
[1747537569660,0.80447,2485.3,2485.2,0.6387]
[1747537569861,2.07107,2485.3,2485.2,0.6387]
[1747537570258,0.8045,2485.2,2485.1,3.2078]
[1747537570466,8.86015508,2485.2,2485.1,3.2078]
[1747537571064,11.91815508,2485.2,2485.1,3.2078]
[1747537573260,10.43785508,2485.2,2485.1,3.2078]
[1747537573459,3.058,2485.2,2485.1,4.01233]
[1747537573765,3.8625,2485.2,2485.1,4.01233]
[1747537573954,3.058,2485.2,2485.1,4.01233]
[1747537575057,0.80442,2485.5,2485.1,4.01233]
[1747537575257,6.11325508,2485.5,2485.4,0.80444]
[1747537575763,6.91766508,2485.5,2485.3,0.80445]
[1747537575958,2.74799,2485.6,2485.4,1.2855]
[1747537576163,9.17125508,2485.5,2485.4,1.2855]
[1747537576364,9.97566508,2485.5,2485.4,1.2855]
[1747537576567,3.86241,2485.5,2485.4,1.2855]
[1747537577565,3.058,2485.5,2485.4,1.2855]
[1747537577765,3.058,2485.5,2485.4,2.08994]
[1747537578166,3.2078,2485.7,2485.5,0.80439]
[1747537578367,3.2078,2485.7,2485.6,2.0038]
[1747537578569,4.01214,2485.7,2485.6,2.0038]
[1747537579270,7.07014,2485.7,2485.6,2.0038]
[1747537579564,13.18339508,2485.7,2485.6,2.0038]
[1747537580163,12.37905508,2485.7,2485.6,2.0038]
[1747537580565,13.18339508,2485.7,2485.6,2.0038]
[1747537581069,12.37905508,2485.7,2485.6,2.0038]
[1747537582566,12.37905508,2485.7,2485.6,2.80817]
[1747537583373,13.18339508,2485.7,2485.6,0.6664]
[1747537583574,0.80439,2485.6,2485.4,0.80443]
[1747537583774,7.47203511,2485.5,2485.4,0.80443]
[1747537584277,1.35878003,2485.5,2485.4,2.09763]
[1747537584873,8.27643511,2485.5,2485.4,1.2932]
[1747537585176,10.53003511,2485.5,2485.3,0.6733]
[1747537585372,3.15018003,2485.5,2485.4,0.80444]
[1747537585776,3.15018003,2485.5,2485.4,2.09764]
[1747537586177,0.09218003,2485.5,2485.4,3.4051]
[1747537589076,0.09218003,2485.5,2485.4,4.60151974]
[1747537593296,0.09218003,2485.5,2485.4,7.80931974]
[1747537593992,0.09218003,2485.5,2485.4,8.21315027]
[1747537596296,0.09218003,2485.5,2485.4,16.04215027]
[1747537597598,0.09218003,2485.5,2485.4,16.84415953]
[1747537597892,1.3211,2485.9,2485.8,0.80431]
[1747537598087,0.6785,2486.2,2486.0,0.80421]
[1747537598294,1.9702,2486.2,2486.0,0.80421]
[1747537598492,6.11325508,2486.1,2486.0,0.80421]
[1747537598694,7.37515508,2486.1,2486.0,2.11167]
[1747537599095,10.43315508,2486.1,2486.0,2.11167]
[1747537600697,11.23736508,2486.1,2486.0,1.30746]
[1747537601598,11.23736508,2486.1,2485.9,0.80427]
[1747537601899,7.45685508,2486.0,2485.9,0.80427]
[1747537603199,10.51485508,2486.0,2485.9,0.80427]
[1747537604105,10.51485508,2486.0,2485.9,2.11102077]
[1747537605105,11.31909508,2486.0,2485.9,1.30675077]
[1747537607613,10.51485508,2486.0,2485.6,1.19998831]
[1747537607912,0.80434,2485.8,2485.7,0.80434]
[1747537608204,1.3092,2485.8,2485.7,0.80434]
[1747537608399,8.09615508,2485.8,2485.7,0.80434]
[1747537608909,8.09615508,2485.8,2485.7,2.11200378]
[1747537609110,11.95846508,2485.8,2485.7,2.11200378]
[1747537610011,12.05064511,2485.8,2485.7,2.11200378]
[1747537610512,12.05064511,2485.8,2485.7,1.30766378]
[1747537611809,5.93739003,2485.8,2485.7,1.30766378]
[1747537612113,12.05064511,2485.8,2485.7,1.30766378]
[1747537612816,4.45938003,2485.8,2485.7,2.11200378]
[1747537613016,4.45938003,2485.8,2485.7,4.16080378]
[1747537614816,10.57263511,2485.8,2485.7,1.30766378]
[1747537615013,4.45938003,2485.8,2485.7,2.90764819]
[1747537615213,4.45938003,2485.8,2485.7,3.71198819]
[1747537618018,3.15018003,2485.8,2485.7,3.71198819]
[1747537618212,0.09218003,2485.8,2485.7,3.71198819]
[1747537619819,0.09218003,2485.8,2485.7,8.23025641]
[1747537620912,0.09218003,2485.8,2485.7,9.03253153]
[1747537622316,0.6829,2486.6,2486.5,0.80408]
[1747537622714,0.6829,2486.6,2486.5,2.11174378]
[1747537622715,6.79615508,2486.6,2486.5,2.11174378]
[1747537623218,9.85415508,2486.6,2486.5,2.11174378]
[1747537623721,11.20595508,2486.6,2486.5,2.11174378]
[1747537624221,11.29813511,2486.6,2486.5,2.11174378]
[1747537628422,11.29813511,2486.6,2486.5,1.30766378]
[1747537628627,11.29813511,2486.6,2486.5,2.11174378]
[1747537630823,11.29813511,2486.6,2486.5,0.80408]
[1747537631926,10.61523511,2486.6,2486.5,0.80408]
[1747537632422,10.61523511,2486.6,2486.5,2.07198]
[1747537633625,4.50198003,2486.6,2486.5,2.07198]
[1747537633822,10.61523511,2486.6,2486.5,2.07198]
[1747537634230,10.61523511,2486.6,2486.5,3.37574016]
[1747537641719,4.50198003,2486.6,2486.5,3.37574016]
[1747537641926,10.61523511,2486.6,2486.5,1.30376016]
[1747537642131,10.61523511,2486.6,2486.5,2.10784016]
[1747537645234,11.41928511,2486.6,2486.5,1.30376016]
[1747537646037,10.61523511,2486.6,2486.5,2.10784016]
[1747537646733,35.18508511,2486.6,2486.5,1.30376016]
[1747537646941,0.80411,2486.4,2486.3,1.20102337]
[1747537647148,9.97536508,2486.4,2486.3,1.20102337]
[1747537647338,14.97536508,2486.4,2486.3,1.20102337]
[1747537648244,14.97536508,2486.4,2486.3,2.00517337]
[1747537648443,24.73725508,2486.4,2486.3,2.00517337]
[1747537648846,24.73725508,2486.4,2485.9,1.2793]
[1747537649036,6.11325508,2486.0,2485.9,0.80428]
[1747537650249,9.17125508,2486.0,2485.9,0.80428]
[1747537651245,10.48725508,2486.0,2485.9,0.80428]
[1747537651743,11.29149508,2486.0,2485.7,4.40882337]
[1747537651951,6.11325508,2485.8,2485.7,5.21316337]
[1747537652446,1.316,2485.8,2485.7,5.21316337]
[1747537652647,1.316,2485.8,2485.7,6.54786337]
[1747537653241,4.374,2485.8,2485.7,6.54786337]
[1747537653550,4.374,2485.8,2485.7,5.74352337]
[1747537653848,4.374,2485.8,2485.7,6.54786337]
[1747537654351,4.374,2485.8,2485.7,5.34684]
[1747537654543,4.374,2485.8,2485.7,4.5425]
[1747537655151,4.374,2485.8,2485.7,5.34684]
[1747537655352,3.058,2485.8,2485.7,5.34684]
[1747537655552,0.6573,2486.4,2486.3,0.80415]
[1747537655848,6.77055508,2486.4,2486.3,0.80415]
[1747537656249,9.82855508,2486.4,2486.3,0.80415]
[1747537656546,3.058,2486.4,2486.3,4.01195]
[1747537657850,3.058,2486.4,2486.3,5.29465]
[1747537658857,3.058,2486.4,2486.3,13.08965]
[1747537659256,0.66,2486.8,2486.7,0.80402]
[1747537659755,6.77325508,2486.8,2486.7,0.80402]
[1747537660157,9.83125508,2486.8,2486.7,0.80402]
[1747537660855,9.83125508,2486.8,2486.6,2.18673]
[1747537661055,7.43295508,2486.7,2486.6,2.18675]
[1747537662155,10.49095508,2486.7,2486.6,2.18675]
[1747537662353,10.49095508,2486.7,2486.3,3.2078]
[1747537662554,3.2078,2486.4,2484.2,8.02863077]
[1747537662765,1.42844468,2484.3,2479.9,1.3468]
[1747537663055,3.2078,2481.3,2481.2,0.31993111]
[1747537663256,3.2078,2481.3,2479.1,2.01619]
[1747537663257,0.80586,2481.0,2480.9,10.53588927]
[1747537663453,0.80602,2480.5,2480.4,4.17558892]
[1747537663649,0.80622,2479.9,2478.4,9.53252327]
[1747537663852,13.58733874,2479.9,2479.8,9.05360609]
[1747537664047,18.58733874,2479.9,2479.8,7.34917609]
[1747537664357,13.37002,2479.9,2479.8,6.48442609]
[1747537664556,19.98337006,2479.9,2479.8,5.61094609]
[1747537664745,29.31168796,2479.9,2479.8,3.94071609]
[1747537664950,0.80667,2478.5,2478.4,8.72582327]
[1747537665150,0.80677,2478.2,2478.1,16.24898986]
[1747537665354,9.91577,2478.2,2478.1,11.87593986]
[1747537665654,0.80687,2477.9,2476.3,41.09132049]
[1747537665853,0.80687,2477.9,2477.8,35.15737411]
[1747537665854,20.04687,2477.9,2477.8,35.15737411]
[1747537666053,20.26594413,2477.9,2477.8,32.51225411]
[1747537666253,25.18887,2477.9,2477.8,17.22282541]
[1747537666455,25.18887,2477.9,2477.8,17.22202541]
[1747537666962,25.18887,2477.9,2477.8,10.03446541]
[1747537667157,30.079212,2477.9,2477.8,0.65521541]
[1747537667464,30.99012031,2477.9,2477.8,5.41e-06]
[1747537668059,5.69612031,2477.9,2477.8,5.41e-06]
[1747537668258,16.16012031,2477.9,2477.8,5.41e-06]
[1747537668460,15.94222006,2477.9,2477.8,5.41e-06]
[1747537669155,15.94222006,2477.9,2477.8,26.63904699]
[1747537669363,15.12035006,2477.9,2477.8,26.63904699]
[1747537669563,15.92722006,2477.9,2477.8,26.63904158]
[1747537669751,15.92722006,2477.9,2477.8,26.73122161]
[1747537669956,4.67135006,2477.9,2477.8,65.06923194]
[1747537670158,1.00739478,2478.5,2477.9,31.44931471]
[1747537670356,1.00739478,2478.5,2478.4,27.74475472]
[1747537670557,1.00739478,2478.5,2478.4,26.95848935]
[1747537670756,1.00739478,2478.5,2478.4,31.44931471]
[1747537670962,1.00739478,2478.5,2478.4,64.97705191]
[1747537671163,7.15408675,2478.9,2478.4,68.03505191]
[1747537671364,3.94628675,2478.9,2478.8,30.16628935]
[1747537671669,1.34063639,2479.2,2478.8,68.18485191]
[1747537671857,1.34063639,2479.2,2479.1,30.16628935]
[1747537672159,10.669,2479.8,2479.1,34.65711471]
[1747537672358,1.67579548,2479.9,2479.7,26.95848935]
[1747537672660,3.2078,2480.4,2479.2,18.31362536]
[1747537672661,3.2078,2480.4,2479.8,26.95848935]
[1747537672857,0.80609,2480.3,2480.2,26.63904158]
[1747537673059,0.80619,2480.0,2479.9,26.63904158]
[1747537673258,0.80619,2480.0,2479.8,29.69704158]
[1747537673259,0.80622,2479.9,2479.8,29.69704158]
[1747537673864,0.80648,2479.1,2479.0,10.615]
[1747537674064,13.9808,2480.0,2479.4,26.95848935]
[1747537674065,0.80635,2479.5,2479.4,26.95848935]
[1747537674255,0.80648,2479.1,2479.0,26.63904158]
[1747537674956,3.2078,2479.2,2478.1,3.2078]
[1747537675159,3.2078,2479.2,2478.8,26.63904158]
[1747537675160,0.80654,2478.9,2478.8,26.63904158]
[1747537675356,6.26119467,2479.5,2479.1,26.95848935]
[1747537675562,3.2078,2479.2,2479.0,26.95848935]
[1747537675762,0.8065,2479.1,2479.0,26.63904158]
[1747537676164,3.2078,2479.2,2479.0,3.058]
[1747537676364,0.80648,2479.1,2479.0,3.37744777]
[1747537676671,17.03519467,2479.5,2479.3,26.95848935]
[1747537676859,0.80647,2479.2,2479.0,3.058]
[1747537677060,17.84154467,2479.5,2479.4,25.3529649]
[1747537677261,14.63374467,2479.5,2479.4,28.4109649]
[1747537677466,14.63374467,2479.5,2479.4,3.058]
[1747537677666,14.78815,2479.5,2479.4,3.058]
[1747537677867,14.86881142,2479.5,2479.4,3.058]
[1747537678361,11.66101142,2479.5,2479.4,3.058]
[1747537678866,0.08066142,2479.5,2479.4,34.62872427]
[1747537679061,10.766,2479.8,2479.7,0.80628]
[1747537679270,10.765,2480.3,2479.7,33.37103803]
[1747537679568,10.765,2480.3,2480.2,25.67241267]
[1747537679865,10.765,2480.3,2480.1,25.3529649]
[1747537679866,0.80612,2480.2,2480.1,25.3529649]
[1747537680061,0.80612,2480.2,2480.1,3.058]
[1747537680467,0.80612,2480.2,2480.1,2.85628869]
[1747537680769,0.80612,2480.2,2478.8,40.651]
[1747537680770,5.22313,2480.2,2479.1,10.619]
[1747537681066,0.80629,2479.7,2479.5,25.3529649]
[1747537681259,3.2078,2479.9,2479.6,25.47070136]
[1747537681464,1.4425419,2480.1,2479.8,25.47070136]
[1747537681660,1.4425419,2480.1,2479.7,0.80628]
[1747537681865,10.726,2480.0,2479.8,25.26899005]
[1747537682068,11.5322,2480.0,2479.8,28.32699005]
[1747537682269,3.85842758,2479.9,2479.8,2.85628869]
[1747537682470,7.06622758,2479.9,2479.8,2.85628869]
[1747537682664,0.80636,2479.5,2479.3,1.3547]
[1747537682871,7.62190758,2479.9,2479.5,25.26899005]
[1747537683070,4.01412,2479.6,2479.5,25.26899005]
[1747537683272,0.80638,2479.4,2479.3,4.4127]
[1747537683672,0.80638,2479.4,2479.3,29.68169005]
[1747537683865,0.80638,2479.4,2479.3,26.59592917]
[1747537684274,10.701,2479.5,2479.3,26.59592917]
[1747537684470,11.50735,2479.5,2479.4,25.26899005]
[1747537684868,11.50735,2479.5,2479.4,24.94954228]
[1747537685064,10.701,2479.5,2479.4,24.37696346]
[1747537685263,12.31451915,2479.5,2479.4,24.69641123]
[1747537685470,12.31451915,2479.5,2479.4,25.50279123]
[1747537685671,1.61351915,2479.5,2479.4,61.20684802]
[1747537685975,0.57311915,2479.5,2479.4,61.20684802]
[1747537686477,3.63885815,2479.5,2479.4,57.34932357]
[1747537686676,2.59845815,2479.5,2479.4,57.34932357]
[1747537686877,5.6129121,2479.9,2479.8,0.80625]
[1747537687174,0.0806419,2480.1,2480.0,0.80619]
[1747537687372,3.2078,2480.5,2480.3,0.80609]
[1747537687574,3.2078,2480.5,2480.3,17.78088678]
[1747537687767,3.2078,2480.5,2480.3,23.07780214]
[1747537687966,3.2078,2480.5,2480.3,20.65856147]
[1747537688167,3.2078,2480.5,2480.3,23.71656147]
[1747537688372,0.80601,2480.6,2480.3,22.945187]
[1747537688681,3.81525947,2480.7,2480.6,0.80599]
[1747537688972,0.80599,2480.6,2480.5,14.59027164]
[1747537689179,3.81525947,2480.7,2480.6,14.59027164]
[1747537689477,4.62121947,2480.7,2480.6,14.59027164]
[1747537690380,0.80612,2480.2,2480.0,11.42618]
[1747537690575,0.80612,2480.2,2480.1,4.49082536]
[1747537690776,0.80612,2480.2,2480.1,20.400597]
[1747537690975,0.80612,2480.2,2480.1,51.61382843]
[1747537691568,3.81525947,2480.7,2480.1,54.82162843]
[1747537691770,0.80599,2480.6,2480.2,4.49082536]
[1747537691973,0.80599,2480.6,2480.3,1.3195]
[1747537692278,0.80599,2480.6,2480.5,14.59027164]
[1747537692576,1.03111384,2480.6,2480.5,13.03357475]
[1747537692776,8.23609981,2480.6,2480.5,46.31122618]
[1747537692976,8.23609981,2480.6,2480.5,37.84488966]
[1747537693176,8.23609981,2480.6,2480.5,40.90288966]
[1747537693378,13.45891981,2480.6,2480.1,0.80614]
[1747537693575,12.02476597,2480.6,2480.5,0.07641287]
[1747537693772,22.74821313,2480.6,2480.5,0.07641287]
[1747537693978,19.54041313,2480.6,2480.5,0.07641287]
[1747537694171,19.54041313,2480.6,2480.5,3.13441287]
[1747537695275,9.04241313,2480.6,2480.5,38.83846966]
[1747537695478,3.2078,2481.4,2480.9,0.80589]
[1747537695783,1.03119169,2481.3,2481.2,3.2078]
[1747537696083,2.23993169,2481.3,2480.9,3.2078]
[1747537696276,11.7991,2481.5,2481.2,3.2078]
[1747537696478,2.01395,2481.9,2481.3,4.49082536]
[1747537696778,0.80573,2481.4,2481.3,4.49082536]
[1747537696979,0.80576,2481.3,2481.2,3.2078]
[1747537697182,0.80576,2481.3,2481.2,19.72518063]
[1747537697481,2.01443,2481.3,2480.7,4.01374]
[1747537697678,0.80589,2480.9,2480.8,15.10882536]
[1747537698183,0.80588,2481.0,2480.8,15.91475536]
[1747537698383,2.01443,2481.3,2480.9,4.49082536]
[1747537698577,0.80586,2481.0,2480.9,4.49082536]
[1747537698782,0.80586,2481.0,2480.9,19.72518063]
[1747537698982,6.36725807,2481.0,2480.9,24.22678077]
[1747537699677,6.36725807,2481.0,2480.9,0.01077478]
[1747537700181,7.88426307,2481.0,2480.9,0.01077478]
[1747537700980,7.07840307,2481.0,2480.9,25.03267077]
[1747537701185,7.07840307,2481.0,2480.9,28.09067077]
[1747537701585,7.07840307,2481.0,2480.9,34.34097077]
[1747537702978,7.07840307,2481.0,2480.9,29.34097077]
[1747537703184,7.88426307,2481.0,2480.9,38.90308077]
[1747537703487,7.88426307,2481.0,2480.9,34.06646264]
[1747537703785,7.88426307,2481.0,2480.9,31.64811965]
[1747537704082,7.88426307,2481.0,2480.9,14.6763]
[1747537704389,7.88426307,2481.0,2480.9,32.45400965]
[1747537705994,7.88426307,2481.0,2480.9,28.82643895]
[1747537706188,7.88426307,2481.0,2480.9,31.88443895]
[1747537707595,8.10240656,2481.0,2480.9,31.88443895]